fUSD/lending_fUSD_20250308
["ID","MTS","AMOUNT","RATE_DAILY","PERIOD"]
[355665328,1741449042197,-500.0,8.219e-05,2]
[355665329,1741449042207,-1874.74,8.219e-05,2]
[355665330,1741449042216,-500.0,8.219e-05,2]
[355665331,1741449042225,-851.99,8.219e-05,2]
[355665332,1741449042235,-500.0,8.219e-05,2]
[355665333,1741449042244,-500.0,8.219e-05,2]
[355665334,1741449042253,-879.88,8.219e-05,2]
[355665335,1741449042264,-5042.13,8.219e-05,2]
[355665336,1741449042273,-5042.55,8.219e-05,2]
[355665337,1741449042283,-1387.09,8.219e-05,2]
[355665338,1741449042292,-1887.92,8.219e-05,2]
[355665339,1741449042302,-516.17,8.219e-05,2]
[355665340,1741449042312,-2225.22,8.219e-05,2]
[355665341,1741449042321,-500.0,8.219e-05,2]
[355665342,1741449042331,-2083.12,8.219e-05,2]
[355665343,1741449042340,-855.4,8.219e-05,2]
[355665344,1741449042350,-500.0,8.219e-05,2]
[355665345,1741449042360,-500.0,8.219e-05,2]
[355665346,1741449042369,-1003.48,8.219e-05,2]
[355665347,1741449042378,-2411.52,8.219e-05,2]
[355665348,1741449042388,-500.0,8.219e-05,2]
[355665349,1741449042398,-1041.41,8.219e-05,2]
[355665350,1741449042407,-1347.66,8.219e-05,2]
[355665351,1741449042417,-500.0,8.219e-05,2]
[355665352,1741449042426,-500.0,8.219e-05,2]
[355665353,1741449042435,-1635.96,8.219e-05,2]
[355665354,1741449042445,-652.26,8.219e-05,2]
[355665355,1741449042454,-2515.6,8.219e-05,2]
[355665356,1741449042464,-1442.37,8.219e-05,2]
[355665357,1741449042474,-3456.85,8.219e-05,2]
[355665358,1741449042483,-1120.58,8.219e-05,2]
[355665359,1741449042493,-18642.08,8.219e-05,2]
[355665360,1741449042503,-1497.11,8.219e-05,2]
[355665361,1741449042513,-786.54,8.219e-05,2]
[355665362,1741449042523,-4139.0,8.219e-05,2]
[355665363,1741449042533,-631.73,8.219e-05,2]
[355665364,1741449042543,-1755.99,8.219e-05,2]
[355665365,1741449042553,-500.0,8.219e-05,2]
[355665366,1741449042562,-500.0,8.219e-05,2]
[355665367,1741449042572,-2984.49,8.219e-05,2]
[355665368,1741449042582,-154.86641144,8.219e-05,2]
[355665369,1741449042591,-1347.38,8.219e-05,2]
[355665370,1741449042601,-500.0,8.219e-05,2]
[355665371,1741449042611,-500.0,8.219e-05,2]
[355665372,1741449042622,-500.0,8.219e-05,2]
[355665373,1741449042631,-2769.7,8.219e-05,2]
[355665374,1741449042642,-163.28937998,8.219e-05,2]
[355665375,1741449042651,-1964.21,8.219e-05,2]
[355665376,1741449042661,-1606.44,8.219e-05,2]
[355665377,1741449042671,-2262.85,8.219e-05,2]
[355665378,1741449042680,-500.0,8.219e-05,2]
[355665379,1741449042690,-500.0,8.219e-05,2]
[355665380,1741449042700,-500.0,8.219e-05,2]
[355665382,1741449042709,-500.0,8.219e-05,2]
[355665384,1741449042719,-1595.58,8.219e-05,2]
[355665385,1741449042728,-500.0,8.219e-05,2]
[355665386,1741449042738,-527.72,8.219e-05,2]
[355665387,1741449042747,-6133.09,8.219e-05,2]
[355665388,1741449042757,-1357.3,8.219e-05,2]
[355665389,1741449042769,-5995.75,8.219e-05,2]
[355665390,1741449042779,-1414.87,8.219e-05,2]
[355665391,1741449042790,-500.0,8.219e-05,2]
[355665392,1741449042799,-1590.98,8.219e-05,2]
[355665393,1741449042809,-785.85,8.219e-05,2]
[355665394,1741449042819,-500.0,8.219e-05,2]
[355665395,1741449042829,-1037.89,8.219e-05,2]
[355665396,1741449042839,-500.0,8.219e-05,2]
[355665397,1741449042848,-500.0,8.219e-05,2]
[355665398,1741449042858,-6919.1,8.219e-05,2]
[355665399,1741449042867,-867.84,8.219e-05,2]
[355665400,1741449042877,-645.8936573,8.219e-05,2]
[355665401,1741449042891,-1222.18,8.219e-05,2]
[355665402,1741449042901,-500.0,8.219e-05,2]
[355665403,1741449042911,-3349.73,8.219e-05,2]
[355665404,1741449042920,-500.0,8.219e-05,2]
[355665405,1741449042930,-572.79,8.219e-05,2]
[355665406,1741449042940,-778.74,8.219e-05,2]
[355665407,1741449042950,-270.03706329,8.219e-05,2]
[355665408,1741449042960,-500.0,8.219e-05,2]
[355665409,1741449042970,-500.0,8.219e-05,2]
[355665410,1741449042980,-1075.32,8.219e-05,2]
[355665412,1741449042989,-2187.41,8.219e-05,2]
[355665414,1741449042998,-1166.49,8.219e-05,2]
[355665416,1741449043007,-752.18,8.219e-05,2]
[355665418,1741449043018,-807.26,8.219e-05,2]
[355665419,1741449043027,-1213.55,8.219e-05,2]
[355665421,1741449043037,-1382.87,8.219e-05,2]
[355665423,1741449043047,-500.0,8.219e-05,2]
[355665425,1741449043056,-1051.85,8.219e-05,2]
[355665428,1741449043066,-2235.53,8.219e-05,2]
[355665429,1741449043076,-583.16,8.219e-05,2]
[355665432,1741449043086,-500.0,8.219e-05,2]
[355665434,1741449043095,-4631.77,8.219e-05,2]
[355665436,1741449043105,-1157.52,8.219e-05,2]
[355665438,1741449043116,-12011.57,8.219e-05,2]
[355665440,1741449043125,-1319.49,8.219e-05,2]
[355665441,1741449043135,-2171.47,8.219e-05,2]
[355665442,1741449043144,-567.75,8.219e-05,2]
[355665443,1741449043154,-789.79,8.219e-05,2]
[355665444,1741449043164,-500.0,8.219e-05,2]
[355665445,1741449043173,-2672.78,8.219e-05,2]
[355665446,1741449043184,-887.2,8.219e-05,2]
[355665447,1741449043194,-1863.08,8.219e-05,2]
[355665448,1741449043204,-500.0,8.219e-05,2]
[355665449,1741449043214,-872.98,8.219e-05,2]
[355665450,1741449043223,-500.0,8.219e-05,2]
[355665451,1741449043232,-3584.31,8.219e-05,2]
[355665452,1741449043242,-3089.68,8.219e-05,2]
[355665453,1741449043251,-710.03,8.219e-05,2]
[355665454,1741449043261,-617.81911857,8.219e-05,2]
[355665455,1741449043270,-1805.35,8.219e-05,2]
[355665456,1741449043279,-500.0,8.219e-05,2]
[355665457,1741449043289,-1011.66,8.219e-05,2]
[355665458,1741449043301,-747.04,8.219e-05,2]
[355665459,1741449043312,-191.93906298,8.219e-05,2]
[355665460,1741449043322,-2989.51,8.219e-05,2]
[355665461,1741449043333,-935.65,8.219e-05,2]
[355665462,1741449043343,-500.0,8.219e-05,2]
[355665463,1741449043353,-2586.02,8.219e-05,2]
[355665464,1741449043363,-1722.74,8.219e-05,2]
[355665465,1741449043372,-1617.54,8.219e-05,2]
[355665466,1741449043381,-2233.02,8.219e-05,2]
[355665467,1741449043390,-500.0,8.219e-05,2]
[355665468,1741449043399,-1286.66,8.219e-05,2]
[355665469,1741449043409,-661.0,8.219e-05,2]
[355665470,1741449043418,-1662.52,8.219e-05,2]
[355665471,1741449043428,-3325.61,8.219e-05,2]
[355665472,1741449043437,-500.0,8.219e-05,2]
[355665473,1741449043446,-1492.93,8.219e-05,2]
[355665474,1741449043455,-3122.98,8.219e-05,2]
[355665475,1741449043465,-1264.6,8.219e-05,2]
[355665476,1741449043474,-1083.14,8.219e-05,2]
[355665477,1741449043483,-2106.84,8.219e-05,2]
[355665478,1741449043493,-689.64,8.219e-05,2]
[355665479,1741449043502,-1313.25,8.219e-05,2]
[355665480,1741449043512,-620.61,8.219e-05,2]
[355665481,1741449043522,-1021.66,8.219e-05,2]
[355665482,1741449043531,-1413.01,8.219e-05,2]
[355665483,1741449043540,-500.0,8.219e-05,2]
[355665484,1741449043549,-2773.87,8.219e-05,2]
[355665485,1741449043558,-500.0,8.219e-05,2]
[355665486,1741449043568,-297.26594485,8.219e-05,2]
[355665487,1741449043577,-2276.46,8.219e-05,2]
[355665488,1741449043586,-500.0,8.219e-05,2]
[355665489,1741449043596,-500.0,8.219e-05,2]
[355665490,1741449043606,-723.51,8.219e-05,2]
[355665491,1741449043615,-942.29,8.219e-05,2]
[355665492,1741449043624,-11440.32,8.219e-05,2]
[355665494,1741449043634,-3465.88,8.219e-05,2]
[355665496,1741449043643,-913.18,8.219e-05,2]
[355665497,1741449043652,-500.0,8.219e-05,2]
[355665500,1741449043662,-6040.15,8.219e-05,2]
[355665503,1741449043671,-961.77,8.219e-05,2]
[355665504,1741449043680,-6852.79,8.219e-05,2]
[355665505,1741449043690,-2953.57,8.219e-05,2]
[355665506,1741449043700,-1537.63,8.219e-05,2]
[355665507,1741449043709,-1463.5,8.219e-05,2]
[355665508,1741449043720,-5714.09,8.219e-05,2]
[355665509,1741449043729,-500.0,8.219e-05,2]
[355665510,1741449043739,-500.0,8.219e-05,2]
[355665511,1741449043749,-876.01,8.219e-05,2]
[355665512,1741449043759,-6438.41,8.219e-05,2]
[355665513,1741449043768,-500.0,8.219e-05,2]
[355665514,1741449043778,-1974.39,8.219e-05,2]
[355665515,1741449043788,-28872.75,8.219e-05,2]
[355665516,1741449043799,-637.14,8.219e-05,2]
[355665517,1741449043809,-500.0,8.219e-05,2]
[355665518,1741449043818,-1397.77,8.219e-05,2]
[355665519,1741449043827,-2222.19,8.219e-05,2]
[355665520,1741449043837,-500.0,8.219e-05,2]
[355665521,1741449043846,-509.76,8.219e-05,2]
[355665522,1741449043856,-3022.95,8.219e-05,2]
[355665523,1741449043865,-516.04,8.219e-05,2]
[355665524,1741449043874,-513.34,8.219e-05,2]
[355665525,1741449043888,-1283.34,8.219e-05,2]
[355665526,1741449043898,-500.0,8.219e-05,2]
[355665527,1741449043907,-1398.27,8.219e-05,2]
[355665528,1741449043916,-2271.09,8.219e-05,2]
[355665529,1741449043927,-443.32,8.219e-05,2]
[355665530,1741449043936,-1000.0,8.219e-05,2]
[355665531,1741449043946,-3834.2,8.219e-05,2]
[355665532,1741449043955,-1533.88,8.219e-05,2]
[355665533,1741449043967,-250.0,8.219e-05,2]
[355665534,1741449043976,-164.8,8.228e-05,2]
[355665535,1741449043985,-164.8,8.389e-05,2]
[355665536,1741449043994,-353.80593118,8.492e-05,2]
[355665537,1741449044004,-500.0,8.492e-05,2]
[355665538,1741449044014,-500.0,8.492e-05,2]
[355665539,1741449044023,-516.77682355,8.492e-05,2]
[355665540,1741449044033,-500.0,8.492e-05,2]
[355665541,1741449044042,-150.0,8.492e-05,2]
[355665542,1741449044051,-300.0,8.492e-05,2]
[355665543,1741449044061,-264.33292438,8.492e-05,2]
[355665544,1741449044070,-150.0,8.492e-05,2]
[355665545,1741449044079,-500.0,8.493e-05,2]
[355665546,1741449044089,-513.73,8.493e-05,2]
[355665547,1741449044098,-500.0,8.493e-05,2]
[355665548,1741449044108,-512.8,8.493e-05,2]
[355665549,1741449044117,-500.0,8.493e-05,2]
[355665550,1741449044128,-500.0,8.493e-05,2]
[355665551,1741449044137,-500.0,8.493e-05,2]
[355665552,1741449044146,-500.0,8.493e-05,2]
[355665553,1741449044155,-500.0,8.493e-05,2]
[355665554,1741449044165,-500.0,8.493e-05,2]
[355665555,1741449044174,-500.0,8.493e-05,2]
[355665556,1741449044184,-500.0,8.493e-05,2]
[355665557,1741449044194,-500.0,8.493e-05,2]
[355665558,1741449044204,-500.0,8.493e-05,2]
[355665559,1741449044214,-511.44,8.493e-05,2]
[355665560,1741449044224,-500.0,8.493e-05,2]
[355665561,1741449044235,-524.91,8.493e-05,2]
[355665562,1741449044247,-500.0,8.493e-05,2]
[355665563,1741449044257,-500.0,8.493e-05,2]
[355665564,1741449044268,-500.0,8.493e-05,2]
[355665565,1741449044277,-511.42,8.493e-05,2]
[355665566,1741449044287,-500.0,8.493e-05,2]
[355665567,1741449044297,-500.0,8.493e-05,2]
[355665568,1741449044307,-500.0,8.493e-05,2]
[355665569,1741449044318,-500.0,8.493e-05,2]
[355665570,1741449044328,-500.0,8.493e-05,2]
[355665571,1741449044338,-500.0,8.493e-05,2]
[355665572,1741449044347,-500.0,8.493e-05,2]
[355665573,1741449044357,-500.0,8.493e-05,2]
[355665574,1741449044367,-637.746161,8.493e-05,2]
[355665575,1741449044376,-500.0,8.493e-05,2]
[355665576,1741449044386,-500.0,8.493e-05,2]
[355665577,1741449044395,-500.0,8.493e-05,2]
[355665578,1741449044404,-500.0,8.493e-05,2]
[355665579,1741449044413,-574.49210668,8.493e-05,2]
[355665580,1741449044423,-500.0,8.493e-05,2]
[355665581,1741449044432,-393.282689,8.493e-05,2]
[355665582,1741449044442,-500.0,8.493e-05,2]
[355665583,1741449044451,-500.0,8.493e-05,2]
[355665584,1741449044460,-500.0,8.493e-05,2]
[355665585,1741449044470,-500.0,8.493e-05,2]
[355665586,1741449044479,-500.0,8.493e-05,2]
[355665587,1741449044488,-500.0,8.493e-05,2]
[355665588,1741449044498,-500.0,8.493e-05,2]
[355665589,1741449044507,-500.0,8.493e-05,2]
[355665590,1741449044517,-500.0,8.493e-05,2]
[355665591,1741449044527,-500.0,8.493e-05,2]
[355665592,1741449044536,-500.0,8.493e-05,2]
[355665593,1741449044546,-500.0,8.493e-05,2]
[355665594,1741449044556,-500.0,8.493e-05,2]
[355665595,1741449044568,-598.25,8.493e-05,2]
[355665596,1741449044577,-500.0,8.493e-05,2]
[355665597,1741449044587,-500.0,8.493e-05,2]
[355665598,1741449044596,-500.0,8.493e-05,2]
[355665599,1741449044605,-611.2,8.493e-05,2]
[355665600,1741449044614,-500.0,8.493e-05,2]
[355665601,1741449044623,-786.33,8.493e-05,2]
[355665602,1741449044634,-500.0,8.493e-05,2]
[355665603,1741449044643,-500.0,8.493e-05,2]
[355665604,1741449044652,-500.0,8.493e-05,2]
[355665605,1741449044662,-500.0,8.493e-05,2]
[355665606,1741449044671,-500.0,8.493e-05,2]
[355665607,1741449044682,-500.0,8.493e-05,2]
[355665608,1741449044692,-500.0,8.493e-05,2]
[355665609,1741449044702,-500.0,8.493e-05,2]
[355665610,1741449044712,-570.31,8.493e-05,2]
[355665611,1741449044721,-801.86,8.493e-05,2]
[355665612,1741449044731,-875.54,8.493e-05,2]
[355665613,1741449044741,-500.0,8.493e-05,2]
[355665614,1741449044750,-563.45,8.493e-05,2]
[355665615,1741449044760,-500.0,8.493e-05,2]
[355665616,1741449044770,-500.0,8.493e-05,2]
[355665617,1741449044779,-500.0,8.493e-05,2]
[355665618,1741449044789,-585.65,8.493e-05,2]
[355665619,1741449044798,-500.0,8.493e-05,2]
[355665620,1741449044808,-631.96,8.493e-05,2]
[355665621,1741449044817,-828.33,8.493e-05,2]
[355665622,1741449044827,-500.0,8.493e-05,2]
[355665623,1741449044837,-500.0,8.493e-05,2]
[355665624,1741449044846,-554.2,8.493e-05,2]
[355665625,1741449044855,-559.71,8.493e-05,2]
[355665626,1741449044865,-674.8,8.493e-05,2]
[355665627,1741449045051,-500.0,8.493e-05,2]
[355665628,1741449045061,-500.0,8.493e-05,2]
[355665629,1741449045072,-500.0,8.493e-05,2]
[355665630,1741449045081,-500.0,8.493e-05,2]
[355665631,1741449045091,-500.0,8.493e-05,2]
[355665632,1741449045100,-500.0,8.493e-05,2]
[355665633,1741449045110,-500.0,8.493e-05,2]
[355665634,1741449045119,-500.0,8.493e-05,2]
[355665635,1741449045128,-500.0,8.493e-05,2]
[355665636,1741449045138,-500.0,8.493e-05,2]
[355665637,1741449045147,-500.0,8.493e-05,2]
[355665638,1741449045157,-697.96,8.493e-05,2]
[355665639,1741449045167,-500.0,8.493e-05,2]
[355665640,1741449045176,-500.0,8.493e-05,2]
[355665641,1741449045186,-511.03,8.493e-05,2]
[355665642,1741449045195,-500.0,8.493e-05,2]
[355665643,1741449045204,-500.0,8.493e-05,2]
[355665644,1741449045214,-500.0,8.493e-05,2]
[355665645,1741449045223,-500.0,8.493e-05,2]
[355665646,1741449045232,-500.0,8.493e-05,2]
[355665647,1741449045242,-602.41,8.493e-05,2]
[355665648,1741449045251,-654.94,8.493e-05,2]
[355665649,1741449045261,-567.16,8.493e-05,2]
[355665650,1741449045270,-735.61,8.493e-05,2]
[355665651,1741449045279,-500.0,8.493e-05,2]
[355665652,1741449045289,-500.0,8.493e-05,2]
[355665653,1741449045299,-500.0,8.493e-05,2]
[355665654,1741449045308,-500.0,8.493e-05,2]
[355665655,1741449045317,-622.78,8.493e-05,2]
[355665656,1741449045327,-500.0,8.493e-05,2]
[355665657,1741449045336,-500.0,8.493e-05,2]
[355665658,1741449045345,-842.65,8.493e-05,2]
[355665659,1741449045355,-500.0,8.493e-05,2]
[355665660,1741449045364,-500.0,8.493e-05,2]
[355665661,1741449045374,-716.52,8.493e-05,2]
[355665662,1741449045383,-774.84,8.493e-05,2]
[355665663,1741449045393,-962.59,8.493e-05,2]
[355665664,1741449045402,-500.0,8.493e-05,2]
[355665665,1741449045412,-500.0,8.493e-05,2]
[355665666,1741449045422,-500.0,8.493e-05,2]
[355665667,1741449045431,-500.0,8.493e-05,2]
[355665668,1741449045443,-500.0,8.493e-05,2]
[355665669,1741449045456,-199.89,8.493e-05,2]
[355665670,1741449045465,-709.03,8.493e-05,2]
[355665671,1741449045475,-623.78,8.493e-05,2]
[355665672,1741449045484,-1001.97,8.493e-05,2]
[355665673,1741449045493,-500.0,8.493e-05,2]
[355665674,1741449045503,-500.0,8.493e-05,2]
[355665675,1741449045512,-500.0,8.493e-05,2]
[355665676,1741449045521,-500.0,8.493e-05,2]
[355665677,1741449045531,-500.0,8.493e-05,2]
[355665678,1741449045540,-500.0,8.493e-05,2]
[355665679,1741449045549,-500.0,8.493e-05,2]
[355665680,1741449045558,-500.0,8.493e-05,2]
[355665681,1741449045568,-500.0,8.493e-05,2]
[355665682,1741449045577,-864.87,8.493e-05,2]
[355665683,1741449045587,-1049.79,8.493e-05,2]
[355665684,1741449045596,-337.94,8.493e-05,2]
[355665685,1741449045606,-859.81,8.493e-05,2]
[355665686,1741449045615,-500.0,8.493e-05,2]
[355665687,1741449045624,-567.04,8.493e-05,2]
[355665688,1741449045634,-500.0,8.493e-05,2]
[355665689,1741449045643,-500.0,8.493e-05,2]
[355665690,1741449045653,-860.21,8.493e-05,2]
[355665691,1741449045662,-500.0,8.493e-05,2]
[355665692,1741449045672,-500.0,8.493e-05,2]
[355665693,1741449045681,-500.0,8.493e-05,2]
[355665694,1741449045691,-1201.81,8.493e-05,2]
[355665695,1741449045700,-976.28,8.493e-05,2]
[355665696,1741449045709,-1000.46,8.493e-05,2]
[355665697,1741449045719,-1223.76,8.493e-05,2]
[355665698,1741449045728,-500.0,8.493e-05,2]
[355665699,1741449045738,-500.0,8.493e-05,2]
[355665700,1741449045747,-608.51,8.493e-05,2]
[355665701,1741449045757,-500.0,8.493e-05,2]
[355665702,1741449045767,-500.0,8.493e-05,2]
[355665703,1741449045776,-500.0,8.493e-05,2]
[355665704,1741449045786,-528.52,8.493e-05,2]
[355665706,1741449045796,-238.79,8.493e-05,2]
[355665707,1741449045805,-500.0,8.493e-05,2]
[355665709,1741449045815,-547.06569288,8.493e-05,2]
[355665710,1741449045825,-972.3,8.493e-05,2]
[355665711,1741449045834,-628.26,8.493e-05,2]
[355665712,1741449045843,-676.23,8.493e-05,2]
[355665713,1741449045852,-212.57,8.493e-05,2]
[355665714,1741449045862,-536.09,8.493e-05,2]
[355665715,1741449045872,-923.34,8.493e-05,2]
[355665717,1741449045882,-500.0,8.493e-05,2]
[355665719,1741449045895,-516.34,8.493e-05,2]
[355665721,1741449045904,-1192.68,8.493e-05,2]
[355665723,1741449045913,-764.96,8.493e-05,2]
[355665725,1741449045923,-500.0,8.493e-05,2]
[355665727,1741449045934,-564.81,8.493e-05,2]
[355665729,1741449045943,-500.0,8.493e-05,2]
[355665731,1741449045953,-500.0,8.493e-05,2]
[355665733,1741449045965,-500.0,8.493e-05,2]
[355665735,1741449045975,-1006.07,8.493e-05,2]
[355665737,1741449045985,-565.59,8.493e-05,2]
[355665739,1741449045994,-500.0,8.493e-05,2]
[355665741,1741449046004,-500.0,8.493e-05,2]
[355665743,1741449046014,-500.0,8.493e-05,2]
[355665745,1741449046024,-594.03,8.493e-05,2]
[355665746,1741449046032,-500.0,8.493e-05,2]
[355665747,1741449046040,-9580.58,8.493e-05,2]
[355665748,1741449046050,-500.0,8.493e-05,2]
[355665749,1741449046060,-500.0,8.493e-05,2]
[355665750,1741449046070,-150.1536953,8.493e-05,2]
[355665751,1741449046080,-930.15,8.493e-05,2]
[355665752,1741449046089,-500.0,8.493e-05,2]
[355665753,1741449046098,-500.0,8.493e-05,2]
[355665754,1741449046108,-1121.78,8.493e-05,2]
[355665755,1741449046117,-1661.91,8.493e-05,2]
[355665756,1741449046127,-3055.95,8.493e-05,2]
[355665757,1741449046136,-500.0,8.493e-05,2]
[355665758,1741449046145,-633.41,8.493e-05,2]
[355665759,1741449046155,-773.96,8.493e-05,2]
[355665760,1741449046165,-594.4,8.493e-05,2]
[355665761,1741449046174,-779.56,8.493e-05,2]
[355665762,1741449046184,-627.02,8.493e-05,2]
[355665763,1741449046194,-500.0,8.493e-05,2]
[355665764,1741449046204,-1209.92,8.493e-05,2]
[355665765,1741449046214,-864.36,8.493e-05,2]
[355665766,1741449046223,-500.0,8.493e-05,2]
[355665767,1741449046232,-500.0,8.493e-05,2]
[355665768,1741449046242,-1874.74,8.493e-05,2]
[355665769,1741449046252,-500.0,8.493e-05,2]
[355665770,1741449046261,-851.99,8.493e-05,2]
[355665771,1741449046274,-500.0,8.493e-05,2]
[355665772,1741449046283,-500.0,8.493e-05,2]
[355665773,1741449046292,-879.88,8.493e-05,2]
[355665774,1741449046302,-5042.13,8.493e-05,2]
[355665775,1741449046311,-5042.55,8.493e-05,2]
[355665776,1741449046321,-1887.92,8.493e-05,2]
[355665777,1741449046331,-1387.09,8.493e-05,2]
[355665778,1741449046340,-516.17,8.493e-05,2]
[355665779,1741449046349,-2225.22,8.493e-05,2]
[355665781,1741449046358,-500.0,8.493e-05,2]
[355665783,1741449046368,-2083.12,8.493e-05,2]
[355665785,1741449046377,-855.4,8.493e-05,2]
[355665786,1741449046386,-500.0,8.493e-05,2]
[355665787,1741449046395,-500.0,8.493e-05,2]
[355665788,1741449046405,-1003.48,8.493e-05,2]
[355665789,1741449046414,-2411.52,8.493e-05,2]
[355665790,1741449046423,-500.0,8.493e-05,2]
[355665791,1741449046433,-1347.66,8.493e-05,2]
[355665792,1741449046443,-1041.41,8.493e-05,2]
[355665793,1741449046452,-500.0,8.493e-05,2]
[355665794,1741449046461,-500.0,8.493e-05,2]
[355665795,1741449046470,-1635.96,8.493e-05,2]
[355665796,1741449046479,-652.26,8.493e-05,2]
[355665798,1741449046489,-2515.6,8.493e-05,2]
[355665799,1741449046498,-1442.37,8.493e-05,2]
[355665801,1741449046507,-3456.85,8.493e-05,2]
[355665803,1741449046519,-1120.58,8.493e-05,2]
[355665805,1741449046529,-18642.08,8.493e-05,2]
[355665807,1741449046539,-1497.11,8.493e-05,2]
[355665808,1741449046549,-786.54,8.493e-05,2]
[355665809,1741449046559,-4139.0,8.493e-05,2]
[355665810,1741449046569,-631.73,8.493e-05,2]
[355665812,1741449046583,-1755.99,8.493e-05,2]
[355665813,1741449046600,-500.0,8.493e-05,2]
[355665814,1741449046614,-500.0,8.493e-05,2]
[355665815,1741449046627,-2984.49,8.493e-05,2]
[355665816,1741449046642,-1347.38,8.493e-05,2]
[355665817,1741449046657,-500.0,8.493e-05,2]
[355665818,1741449046672,-500.0,8.493e-05,2]
[355665819,1741449046688,-2769.7,8.493e-05,2]
[355665820,1741449046701,-1964.21,8.493e-05,2]
[355665821,1741449046714,-1606.44,8.493e-05,2]
[355665822,1741449046730,-2262.85,8.493e-05,2]
[355665823,1741449046744,-500.0,8.493e-05,2]
[355665824,1741449046758,-500.0,8.493e-05,2]
[355665825,1741449046774,-500.0,8.493e-05,2]
[355665826,1741449046789,-500.0,8.493e-05,2]
[355665827,1741449046803,-1595.58,8.493e-05,2]
[355665828,1741449046818,-500.0,8.493e-05,2]
[355665829,1741449046831,-527.72,8.493e-05,2]
[355665830,1741449046847,-6133.09,8.493e-05,2]
[355665831,1741449046860,-1357.3,8.493e-05,2]
[355665832,1741449046874,-5995.75,8.493e-05,2]
[355665833,1741449046892,-1414.87,8.493e-05,2]
[355665834,1741449046904,-335.08089028,8.493e-05,2]
[355665835,1741449046917,-1590.98,8.493e-05,2]
[355665836,1741449046929,-785.85,8.493e-05,2]
[355665837,1741449046940,-501.68254505,8.493e-05,2]
[355665838,1741449046956,-1037.89,8.493e-05,2]
[355665839,1741449046970,-500.0,8.493e-05,2]
[355665840,1741449046982,-500.0,8.493e-05,2]
[355665841,1741449046993,-6919.1,8.493e-05,2]
[355665842,1741449047007,-867.84,8.493e-05,2]
[355665843,1741449047022,-1222.18,8.493e-05,2]
[355665844,1741449047033,-3349.73,8.493e-05,2]
[355665845,1741449047045,-500.0,8.493e-05,2]
[355665846,1741449047057,-572.79,8.493e-05,2]
[355665847,1741449047069,-778.74,8.493e-05,2]
[355665848,1741449047081,-500.0,8.493e-05,2]
[355665849,1741449047093,-200.63187546,8.493e-05,2]
[355665850,1741449047105,-1075.32,8.493e-05,2]
[355665851,1741449047117,-2187.41,8.493e-05,2]
[355665852,1741449047129,-1166.49,8.493e-05,2]
[355665853,1741449047141,-752.18,8.493e-05,2]
[355665854,1741449047154,-807.26,8.493e-05,2]
[355665855,1741449047166,-1213.55,8.493e-05,2]
[355665856,1741449047179,-1382.87,8.493e-05,2]
[355665857,1741449047193,-500.0,8.493e-05,2]
[355665858,1741449047205,-1051.85,8.493e-05,2]
[355665859,1741449047217,-2235.53,8.493e-05,2]
[355665860,1741449047229,-583.16,8.493e-05,2]
[355665861,1741449047244,-500.0,8.493e-05,2]
[355665862,1741449047257,-4631.77,8.493e-05,2]
[355665863,1741449047269,-1157.52,8.493e-05,2]
[355665864,1741449047281,-12011.57,8.493e-05,2]
[355665865,1741449047293,-1319.49,8.493e-05,2]
[355665866,1741449047305,-2171.47,8.493e-05,2]
[355665867,1741449047317,-567.75,8.493e-05,2]
[355665868,1741449047330,-789.79,8.493e-05,2]
[355665869,1741449047343,-500.0,8.493e-05,2]
[355665870,1741449047355,-2672.78,8.493e-05,2]
[355665871,1741449047370,-887.2,8.493e-05,2]
[355665872,1741449047384,-1863.08,8.493e-05,2]
[355665873,1741449047396,-500.0,8.493e-05,2]
[355665874,1741449047409,-872.98,8.493e-05,2]
[355665875,1741449047422,-500.0,8.493e-05,2]
[355665876,1741449047434,-3584.31,8.493e-05,2]